bitfinex/quotes_ETHUSD_20250814
["timestamp","ask_amount","ask_price","bid_price","bid_amount"]
[1755160602008,0.1056,4734.2,4733.6,0.2219046]
[1755160602501,0.1056,4733.7,4733.5,0.0008]
[1755160602815,0.9137,4733.6,4733.5,0.0008]
[1755160603103,0.15795888,4733.6,4733.5,0.0008]
[1755160603275,0.1056,4733.7,4733.5,0.0008]
[1755160603474,0.1056,4733.7,4732.8,0.1056]
[1755160603698,1.0193,4733.7,4732.8,0.1056]
[1755160604012,0.1056,4733.1,4732.6,0.001]
[1755160604171,0.4831,4733.0,4732.6,0.001]
[1755160604369,0.9137,4732.9,4732.6,0.001]
[1755160604600,0.1056,4733.1,4732.6,0.001]
[1755160604601,0.9137,4732.8,4732.6,0.001]
[1755160604769,0.1056,4732.7,4732.6,0.001]
[1755160604966,1.0193,4732.7,4732.6,0.001]
[1755160606406,0.1056,4732.7,4732.6,0.001]
[1755160606874,1.0193,4732.7,4732.6,0.001]
[1755160607063,0.1056,4732.7,4732.6,0.001]
[1755160607267,0.1056,4733.2,4732.6,0.4581]
[1755160608196,0.1056,4733.2,4732.6,0.001]
[1755160608797,0.002,4733.1,4732.6,0.001]
[1755160609118,0.002,4733.1,4732.6,0.26868775]
[1755160609306,0.002,4733.1,4732.7,0.4571]
[1755160609471,0.002,4733.1,4732.8,0.4571]
[1755160609671,0.002,4733.1,4732.9,0.4571]
[1755160609871,0.002,4733.1,4733.0,0.4571]
[1755160610798,0.002,4733.1,4732.6,0.4581]
[1755160611003,0.002,4733.1,4732.7,0.4571]
[1755160611169,0.002,4733.1,4732.6,0.001]
[1755160611373,0.1056,4732.7,4732.6,0.001]
[1755160611590,1.0401,4732.7,4732.6,0.001]
[1755160611783,0.1056,4732.7,4732.6,0.001]
[1755160611967,0.1056,4732.7,4732.6,0.0018]
[1755160612175,1.0401,4732.7,4732.6,0.0018]
[1755160612503,1.0393,4732.7,4732.6,0.0018]
[1755160612687,0.1048,4732.7,4732.6,0.0018]
[1755160613000,0.6004,4732.7,4732.6,0.0018]
[1755160613310,1.0393,4732.7,4732.6,0.0018]
[1755160613911,0.1048,4732.7,4732.6,0.0018]
[1755160614280,1.0393,4732.7,4732.6,0.0018]
[1755160615215,1.46767902,4732.7,4732.6,0.0018]
[1755160615376,1.72217472,4732.7,4732.6,0.0018]
[1755160615580,1.36287902,4732.7,4732.6,0.0018]
[1755160615796,0.9345,4732.7,4732.6,0.0018]
[1755160615977,3.9345,4732.7,4732.6,0.0018]
[1755160618021,31.80833505,4732.7,4732.6,0.0018]
[1755160619016,3.9345,4732.7,4732.6,0.0018]
[1755160620308,3.4956,4732.7,4732.6,0.0018]
[1755160620523,3.3582148,4732.7,4732.6,0.0018]
[1755160620889,4.2927148,4732.7,4732.6,0.0018]
[1755160622894,3.8538148,4732.7,4732.6,0.0018]
[1755160623218,4.2927148,4732.7,4732.6,0.0018]
[1755160623824,3.8538148,4732.7,4732.6,0.0018]
[1755160624416,4.2927148,4732.7,4732.6,0.0018]
[1755160625608,4.3983148,4732.7,4732.6,0.0018]
[1755160626006,6.51127357,4732.7,4732.6,0.0018]
[1755160626213,6.59583157,4732.7,4732.6,0.0018]
[1755160626413,4.4828728,4732.7,4732.6,0.0018]
[1755160627329,6.59583157,4732.7,4732.6,0.0018]
[1755160627490,7.09281747,4732.7,4732.6,0.0018]
[1755160631120,9.31181747,4732.7,4732.6,0.0018]
[1755160631324,2.11318202,4732.2,4732.1,0.001]
[1755160631543,34.58520122,4732.2,4732.1,0.001]
[1755160632452,36.80420122,4732.2,4732.1,0.001]
[1755160632653,36.54970552,4732.2,4732.1,0.001]
[1755160633432,36.30721532,4732.2,4732.1,0.001]
[1755160633616,36.66543012,4732.2,4732.1,0.001]
[1755160633958,3.4638148,4732.2,4732.1,0.001]
[1755160634247,3.44719924,4732.2,4732.1,0.001]
[1755160634816,3.94279924,4732.2,4732.1,0.001]
[1755160635143,4.38169924,4732.2,4732.1,0.001]
[1755160636852,6.49488126,4732.2,4732.1,0.001]
[1755160637166,3.44719924,4732.2,4732.1,0.001]
[1755160638065,6.49488126,4732.2,4732.1,0.001]
[1755160638212,7.44096716,4732.2,4732.1,0.001]
[1755160638410,6.94398126,4732.2,4732.1,0.001]
[1755160638816,7.44096716,4732.2,4732.1,0.001]
[1755160639114,9.65996716,4732.2,4732.1,0.001]
[1755160639832,9.40547146,4732.2,4732.1,0.001]
[1755160640318,9.40467146,4732.2,4732.1,0.001]
[1755160640522,9.40467146,4732.2,4732.1,0.0018]
[1755160641135,9.16218126,4732.2,4732.1,0.0018]
[1755160641334,6.94318126,4732.2,4732.1,0.0018]
[1755160641538,3.89549924,4732.2,4732.1,0.0018]
[1755160641854,3.53728444,4732.2,4732.1,0.0018]
[1755160642053,5.65046646,4732.2,4732.1,0.0018]
[1755160642251,34.50229976,4732.2,4732.1,0.0018]
[1755160642551,35.45206002,4732.2,4732.1,0.0018]
[1755160642718,34.99928566,4732.2,4732.1,0.0018]
[1755160643315,4.45418444,4732.2,4732.1,0.0018]
[1755160643539,6.12426646,4732.2,4732.1,0.0018]
[1755160643738,3.53728444,4732.2,4732.1,0.0018]
[1755160643955,5.65046646,4732.2,4732.1,0.0018]
[1755160644531,3.53728444,4732.2,4732.1,0.0018]
[1755160644855,3.53728444,4732.2,4731.6,0.4845]
[1755160644856,0.5547,4732.2,4731.6,0.4845]
[1755160645055,0.74351226,4733.1,4731.6,0.4845]
[1755160645353,0.1056,4731.7,4731.6,0.4845]
[1755160645561,0.74351226,4733.1,4731.6,0.4845]
[1755160645562,0.1056,4732.2,4731.6,0.4845]
[1755160645765,0.1056,4732.2,4731.7,0.02113405]
[1755160645942,0.1056,4732.2,4731.6,0.4845]
[1755160646760,0.1056,4732.2,4731.7,0.2999]
[1755160646959,0.002,4733.1,4731.7,0.2999]
[1755160647165,0.1056,4731.8,4731.7,0.2999]
[1755160647539,0.1056,4731.8,4731.7,0.7834]
[1755160647739,0.1056,4731.8,4731.6,0.001]
[1755160647938,0.1056,4731.8,4731.7,0.7834]
[1755160648463,0.1056,4731.8,4731.6,0.001]
[1755160649852,0.002,4733.1,4731.7,0.7834]
[1755160650260,0.1056,4731.8,4731.6,0.001]
[1755160651341,0.4431,4731.7,4731.6,0.001]
[1755160651677,0.9169,4731.7,4731.6,0.001]
[1755160651839,0.1056,4731.8,4731.6,0.001]
[1755160652037,0.9169,4731.7,4731.6,0.001]
[1755160652454,1.53048341,4731.7,4731.6,0.001]
[1755160653306,0.9169,4731.7,4731.6,0.001]
[1755160653662,6.03030533,4731.7,4731.6,0.001]
[1755160654197,3.9169,4731.7,4731.6,0.001]
[1755160656064,6.220481,4731.7,4731.6,0.001]
[1755160656364,4.001481,4731.7,4731.6,0.001]
[1755160656560,6.73691811,4731.7,4731.6,0.001]
[1755160656789,3.0,4731.6,4731.1,0.001]
[1755160657097,0.1056,4731.2,4731.1,0.001]
[1755160657395,6.13612867,4731.2,4731.1,0.001]
[1755160657596,4.0225,4731.2,4731.1,0.001]
[1755160657796,6.36614628,4731.2,4731.1,0.001]
[1755160658798,5.11367953,4731.1,4729.1,0.6854]
[1755160658966,3.0,4730.9,4729.2,0.2999]
[1755160659369,0.1056,4729.3,4729.2,0.2999]
[1755160659868,0.1056,4729.3,4728.6,2.11479019]
[1755160660175,0.1056,4728.8,4728.7,1.03352954]
[1755160660379,0.1056,4728.8,4728.7,0.2999]
[1755160660763,0.1056,4728.8,4728.7,0.6949]
[1755160664893,0.1056,4728.8,4728.3,0.2999]
[1755160665090,0.1056,4728.8,4728.4,0.6949]
[1755160665268,0.1056,4728.8,4728.5,0.2999]
[1755160666369,0.1056,4728.8,4728.5,0.6949]
[1755160666801,0.1056,4728.8,4728.5,1.06439]
[1755160667484,0.1056,4728.8,4728.5,0.6949]
[1755160668608,0.1056,4728.8,4728.5,0.2999]
[1755160669188,0.1056,4728.8,4728.0,0.395]
[1755160669395,0.1056,4728.8,4728.1,0.2999]
[1755160669780,0.1056,4728.8,4728.1,0.2499]
[1755160669985,0.1056,4728.8,4728.2,0.2865598]
[1755160670291,0.1056,4728.8,4728.2,0.2873598]
[1755160673914,0.1056,4728.8,4728.2,0.0008]
[1755160674314,0.1056,4728.8,4728.1,0.2509]
[1755160674706,0.1056,4728.8,4728.1,2.36591044]
[1755160675213,0.1056,4728.8,4728.1,0.2509]
[1755160676616,0.1056,4728.8,4728.1,0.001]
[1755160677215,0.1056,4728.8,4728.1,0.22317452]
[1755160677416,0.1056,4728.8,4728.1,0.001]
[1755160679718,0.9191,4728.7,4728.1,0.001]
[1755160679886,0.1056,4728.2,4728.1,0.001]
[1755160680091,1.0247,4728.2,4728.1,0.001]
[1755160680487,1.0247,4728.2,4728.1,0.0018]
[1755160682695,0.1056,4728.2,4728.1,2.11681448]
[1755160682898,0.1056,4728.2,4728.1,33.90832923]
[1755160683093,0.4805,4730.2,4728.2,3.0]
[1755160683408,0.6416905,4730.2,4728.5,2.11479993]
[1755160683613,0.4386,4730.1,4728.7,0.1056]
[1755160683992,0.4386,4730.1,4728.8,2.11469306]
[1755160684196,0.4386,4730.1,4728.9,0.78744233]
[1755160684821,0.4386,4730.1,4728.7,0.1056]
[1755160685493,0.4386,4730.1,4728.8,2.1147014]
[1755160685695,0.6416905,4730.2,4728.7,0.1056]
[1755160685696,0.1611905,4730.2,4728.9,2.36455414]
[1755160686000,0.4386,4730.5,4728.9,2.36455414]
[1755160686001,0.4386,4730.5,4728.9,0.5393]
[1755160686205,0.4386,4730.5,4728.9,0.56044656]
[1755160686497,0.4386,4730.5,4728.9,0.83852077]
[1755160686698,0.59533294,4730.5,4728.9,0.83852077]
[1755160686903,0.15673294,4730.5,4729.4,2.11441261]
[1755160687120,0.4386,4731.0,4729.5,0.3555]
[1755160687692,1.07760462,4731.0,4728.6,2.11479084]
[1755160687926,1.07760462,4731.0,4729.0,0.1056]
[1755160688122,1.02686046,4730.9,4728.7,0.1056]
[1755160688326,0.9191,4730.8,4728.7,0.1056]
[1755160688530,0.74215346,4730.9,4728.7,0.1056]
[1755160688824,0.9191,4730.7,4728.8,2.11466616]
[1755160689025,0.74215346,4730.9,4728.6,2.11474735]
[1755160689322,0.9191,4730.6,4728.7,0.422963]
[1755160689509,0.9191,4730.5,4729.1,0.1056]
[1755160689719,0.9191,4730.4,4729.1,0.1056]
[1755160690022,0.9191,4730.3,4729.1,0.1056]
[1755160690221,0.9191,4730.2,4729.1,0.1056]
[1755160690418,0.9191,4730.1,4729.1,0.1056]
[1755160690622,0.9191,4730.1,4729.1,0.1064]
[1755160691205,0.9191,4730.1,4729.1,0.5399782]
[1755160691403,0.9191,4730.1,4729.1,0.1064]
[1755160691605,0.4386,4730.5,4729.1,0.1064]
[1755160691797,0.4386,4730.5,4729.5,0.1056]
[1755160692402,0.4805,4730.4,4729.5,0.1056]
[1755160692611,0.4386,4730.3,4729.5,0.1056]
[1755160692909,0.4386,4730.3,4729.1,0.0008]
[1755160693096,0.4805,4730.2,4729.1,0.0008]
[1755160693294,0.4386,4730.1,4729.1,0.0008]
[1755160693597,0.4805,4730.0,4729.1,0.0008]
[1755160693936,0.4805,4730.0,4728.1,0.001]
[1755160693937,0.4386,4729.9,4728.1,0.001]
[1755160694425,0.4805,4729.8,4728.1,0.001]
[1755160694744,0.4386,4729.7,4728.1,0.001]
[1755160695033,0.4805,4729.6,4728.1,0.001]
[1755160695208,0.4386,4729.5,4728.1,0.001]
[1755160695410,0.4805,4729.4,4728.1,0.02215014]
[1755160695598,0.4805,4729.4,4728.1,0.001]
[1755160695999,0.4386,4730.0,4728.2,0.9060051]
[1755160696199,0.4386,4730.0,4728.3,0.2499]
[1755160696814,0.4386,4730.0,4728.4,0.0211488]
[1755160697017,0.4386,4730.0,4728.5,2.1148253]
[1755160697216,0.4386,4730.0,4728.6,0.3555]
[1755160698307,0.4386,4730.0,4728.6,0.93147715]
[1755160698534,0.4386,4730.0,4728.6,0.1056]
[1755160698731,0.4805,4729.9,4728.6,0.1056]
[1755160699504,0.4386,4729.8,4728.6,0.1056]
[1755160699810,0.4805,4729.7,4728.1,0.1066]
[1755160700011,0.4805,4729.7,4728.2,2.11496325]
[1755160700212,0.4805,4729.7,4728.3,0.7586557]
[1755160700537,0.4805,4729.7,4728.4,3.1056]
[1755160700718,0.4805,4729.7,4728.4,0.1056]
[1755160700915,0.4805,4729.7,4728.4,0.1064]
[1755160701250,0.4386,4729.6,4728.4,0.1064]
[1755160701459,0.4531,4729.5,4728.4,0.1064]
[1755160701604,0.4531,4729.5,4728.4,0.0008]
[1755160701802,0.4432,4729.4,4728.4,0.0008]
[1755160702353,0.4432,4730.1,4728.5,2.11483557]
[1755160702637,0.4432,4730.1,4728.6,0.81539356]
[1755160702845,0.002,4730.3,4728.7,3.02114746]
[1755160703143,0.002,4730.3,4729.1,2.11456725]
[1755160703314,0.002,4730.3,4729.2,0.02114522]
[1755160703517,0.002,4730.3,4729.2,0.56044522]
[1755160703708,0.002,4730.3,4729.6,0.1056]
[1755160704116,0.002,4730.3,4729.7,0.54698477]
[1755160704341,0.002,4730.3,4729.6,0.1056]
[1755160704521,0.002,4730.3,4729.7,0.02114299]
[1755160704707,0.002,4730.3,4729.8,0.02114254]
[1755160704912,0.002,4730.3,4729.6,2.21992147]
[1755160704913,0.002,4730.3,4729.6,0.1056]
[1755160706067,0.8963,4730.2,4728.8,2.40409612]
[1755160706360,0.8963,4730.2,4729.3,0.1056]
[1755160706925,0.8963,4730.1,4728.2,2.11496856]
[1755160707125,0.8963,4730.0,4728.1,0.001]
[1755160707366,0.8963,4729.9,4728.1,0.001]
[1755160707672,0.8963,4729.8,4728.3,0.1056]
[1755160707869,0.002,4730.3,4728.3,0.1056]
[1755160708167,0.8963,4729.7,4728.3,0.1056]
[1755160708472,0.8963,4729.7,4728.3,0.3277655]
[1755160708637,0.4432,4729.6,4728.3,0.1056]
[1755160709970,0.4432,4729.8,4728.3,0.1056]
[1755160710776,0.4531,4729.7,4728.3,0.1056]
[1755160711143,0.4531,4729.7,4728.3,0.1064]
[1755160711570,0.4432,4729.6,4728.3,0.1064]
[1755160711752,0.4432,4729.6,4728.3,0.44608]
[1755160712061,0.4432,4729.6,4728.5,0.1056]
[1755160712632,0.4531,4729.5,4728.3,0.0008]
[1755160712827,0.4432,4729.4,4728.3,0.0008]
[1755160713268,0.4531,4729.3,4728.3,0.0008]
[1755160713436,0.4531,4729.3,4728.1,0.001]
[1755160713639,0.4432,4729.2,4728.1,0.001]
[1755160713856,0.4432,4729.7,4728.2,0.1056]
[1755160714053,0.4432,4729.1,4728.1,0.001]
[1755160714451,0.4531,4729.0,4728.1,0.001]
[1755160716844,0.4432,4729.1,4728.1,0.001]
[1755160717371,0.4432,4729.1,4728.1,0.57710481]
[1755160717539,0.4432,4729.1,4728.1,0.001]
[1755160717741,0.4432,4729.7,4728.3,2.11488511]
[1755160717945,0.4432,4729.7,4728.4,2.36477323]
[1755160718144,0.4432,4729.7,4728.6,0.1056]
[1755160718363,0.4432,4729.7,4728.7,0.24704163]
[1755160718567,0.4432,4729.7,4728.6,0.1056]
[1755160719285,0.4551,4730.0,4728.6,0.1056]
[1755160719573,0.4432,4729.9,4728.6,0.1056]
[1755160719777,0.4432,4729.9,4728.5,2.11482645]
[1755160719956,0.4432,4729.9,4728.9,0.1056]
[1755160720565,0.002,4730.0,4728.9,0.1056]
[1755160721280,0.4452,4730.0,4728.9,0.1064]
[1755160721760,0.002,4730.0,4729.1,2.11452888]
[1755160722079,0.002,4730.0,4729.3,0.1056]
[1755160724965,0.4452,4730.0,4729.3,0.1056]
[1755160725169,0.4531,4729.9,4728.9,0.0008]
[1755160725365,0.4432,4729.8,4728.9,0.0008]
[1755160725973,0.4432,4729.8,4729.0,0.1056]
[1755160727489,0.4432,4729.8,4729.1,0.22202626]
[1755160727668,0.4432,4729.8,4729.0,0.1056]
[1755160730091,0.4531,4729.7,4728.1,2.11597189]
[1755160730296,0.4531,4729.7,4728.8,0.1056]
[1755160730479,0.4432,4729.6,4728.8,0.1056]
[1755160731389,0.4432,4729.6,4728.8,0.1064]
[1755160731561,0.4562,4729.5,4728.8,0.1064]
[1755160732786,0.4333,4729.6,4728.8,0.1064]
[1755160734594,0.4562,4729.5,4728.8,0.0008]
[1755160734763,0.002,4730.0,4728.8,0.0008]
[1755160734971,0.4333,4729.8,4728.8,0.0008]
[1755160736068,0.4333,4729.8,4728.6,0.1056]
[1755160736270,0.4333,4729.8,4728.1,0.001]
[1755160736271,0.4562,4729.7,4728.1,0.001]
[1755160736574,0.4333,4729.6,4728.3,0.1056]
[1755160737011,0.4562,4729.5,4728.3,0.1056]
[1755160737529,0.4333,4729.4,4728.3,0.1056]
[1755160737797,0.4333,4729.4,4728.3,0.32776592]
[1755160738696,0.4333,4729.4,4728.3,0.1056]
[1755160738893,0.4333,4729.4,4728.4,0.0211488]
[1755160739098,0.4333,4729.4,4728.6,0.1056]
[1755160739872,3.8291,4729.3,4728.6,0.1056]
[1755160741102,0.8895,4729.2,4728.6,0.1056]
[1755160741303,0.47186,4729.1,4728.6,0.1056]
[1755160741514,0.8895,4729.1,4728.6,0.1064]
[1755160741689,3.8291,4729.3,4728.6,0.1064]
[1755160742303,0.8895,4729.2,4728.6,0.1064]
[1755160742610,0.8895,4729.2,4728.6,0.0008]
[1755160742795,0.8895,4729.1,4728.6,0.0008]
[1755160743155,0.8895,4729.0,4728.6,0.0008]
[1755160743288,0.4333,4729.0,4728.6,0.0008]
[1755160743603,0.4333,4728.9,4728.6,0.0008]
[1755160743798,0.4333,4728.9,4728.4,0.1056]
[1755160744006,4.2624,4729.3,4728.4,0.1056]
[1755160744338,4.2624,4729.3,4728.4,0.32776062]
[1755160744513,4.2624,4729.3,4728.4,0.1056]
[1755160744708,0.002,4730.0,4728.5,0.02114835]
[1755160744923,0.4333,4729.6,4728.5,0.02114835]
[1755160745096,0.4333,4729.6,4728.4,0.1056]
[1755160745819,0.4333,4729.6,4728.5,0.02114835]
[1755160746419,0.4333,4729.6,4728.6,0.0211479]
[1755160746718,0.4333,4729.6,4728.5,0.24926089]
[1755160748422,0.4333,4729.6,4728.6,0.0211479]
[1755160748716,0.4333,4729.6,4728.5,0.24926089]
[1755160749031,0.4562,4729.5,4728.4,0.1056]
[1755160749233,0.4333,4729.4,4728.4,0.1056]
[1755160750095,0.4562,4729.3,4728.4,0.1056]
[1755160750394,0.4333,4729.2,4728.1,0.001]
[1755160750596,0.4562,4729.1,4728.1,0.1066]
[1755160751621,0.4333,4729.2,4728.3,0.1056]
[1755160753840,0.4562,4729.1,4728.3,0.1056]
[1755160753994,0.4333,4729.0,4728.3,0.1056]
[1755160754198,0.4562,4728.9,4728.1,0.0018]
[1755160754427,0.4333,4728.8,4728.1,0.0018]
[1755160755601,0.4562,4728.7,4728.1,0.0018]
[1755160756832,0.4333,4728.6,4728.1,0.0018]
[1755160757035,4.7186,4728.5,4728.1,0.0018]
[1755160757243,4.36136,4728.4,4728.1,0.0018]
[1755160757401,0.8895,4728.3,4728.1,0.0018]
[1755160757601,0.8895,4728.2,4728.1,0.0018]
[1755160757800,0.8887,4728.2,4728.1,0.0018]
[1755160758401,1.04509749,4728.2,4728.1,0.0018]
[1755160760433,0.15639749,4728.2,4728.1,0.0018]
[1755160760636,0.4562,4729.1,4728.1,0.1074]
[1755160760935,0.4333,4728.7,4728.1,0.1074]
[1755160761111,0.4562,4728.6,4728.1,0.0018]
[1755160761315,0.4333,4728.7,4728.1,0.0018]
[1755160761316,0.9017,4728.5,4728.1,0.0018]
[1755160761510,0.9017,4728.4,4728.1,0.0018]
[1755160761710,0.9017,4728.3,4728.1,0.0018]
[1755160761911,0.9017,4728.2,4728.1,0.0018]
[1755160768308,3.8265,4728.1,4727.7,0.001]
[1755160768511,0.9017,4728.0,4727.6,0.001]
[1755160768738,0.9017,4727.9,4727.6,0.001]
[1755160768938,0.1056,4727.7,4727.6,0.001]
[1755160769142,1.0073,4727.7,4727.6,0.001]
[1755160769392,0.9017,4727.7,4725.6,1.8979752]
[1755160769511,0.9017,4727.6,4725.3,2.11626622]
[1755160769846,0.2460277,4728.6,4725.5,2.11615631]
[1755160769847,0.9017,4727.5,4725.5,2.11615631]
[1755160770147,0.9017,4727.4,4725.3,2.11626558]
[1755160770343,0.634824,4727.8,4725.3,2.11626558]
[1755160770548,0.9017,4727.3,4725.3,2.11626558]
[1755160770845,0.9017,4727.2,4725.5,3.0]
[1755160771020,0.9017,4727.1,4725.4,0.74825243]
[1755160771342,0.9017,4727.0,4724.9,2.1164469]
[1755160771544,0.4517,4726.9,4725.1,0.2499]
[1755160771844,0.9017,4726.9,4725.1,0.2499]
[1755160772047,0.9017,4726.9,4725.1,2.36624676]
[1755160772256,0.9017,4726.8,4725.2,3.44837269]
[1755160772414,0.634824,4727.8,4725.2,0.44837269]
[1755160772617,0.9017,4726.7,4724.8,0.2509]
[1755160772827,0.634824,4727.8,4725.1,2.11635436]
[1755160772828,0.9017,4726.6,4725.1,2.11635436]
[1755160773163,0.9017,4726.6,4725.2,2.11628593]
[1755160773568,0.15535748,4726.6,4725.7,2.11608248]
[1755160773739,0.4517,4726.9,4725.3,0.2499]
[1755160773941,0.9017,4726.8,4725.4,2.11621763]
[1755160774154,0.9017,4726.8,4725.5,0.74834686]
[1755160774845,0.9017,4726.8,4725.3,0.2499]
[1755160775055,0.9017,4726.8,4725.5,2.11616898]
[1755160775261,0.9017,4726.8,4725.6,2.13728995]
[1755160775434,0.9017,4726.8,4725.7,0.02116088]
[1755160775639,0.9017,4726.8,4725.5,2.11617135]
[1755160775941,0.9017,4726.8,4725.6,0.23660714]
[1755160776532,0.9017,4726.8,4725.6,2.11612367]
[1755160776739,0.9017,4726.8,4725.4,3.0]
[1755160776934,0.4517,4726.7,4725.3,2.36615338]
[1755160777242,0.9017,4726.7,4725.3,2.11625698]
[1755160777552,0.9017,4726.7,4725.1,2.11635042]
[1755160777553,0.9017,4726.7,4724.7,5.11749783]
[1755160777754,0.15593696,4726.8,4725.7,2.11608361]
[1755160777935,0.9017,4727.1,4725.6,0.2499]
[1755160778467,0.9017,4727.0,4725.1,5.36624237]
[1755160778766,0.9017,4726.9,4725.1,0.2507]
[1755160779064,0.9017,4726.8,4725.2,2.11631253]
[1755160779269,0.1056,4726.1,4725.4,0.1056]
[1755160779640,1.0073,4726.1,4725.4,0.1056]
[1755160780143,0.1056,4726.1,4725.4,0.1056]
[1755160780545,0.9017,4726.4,4725.1,2.11712123]
[1755160780751,0.1056,4725.9,4725.2,2.22190843]
[1755160781055,0.1056,4725.9,4725.3,0.7589035]
[1755160781256,0.1056,4725.9,4725.3,2.87516399]
[1755160781570,0.1056,4725.9,4725.3,0.7589035]
[1755160781782,0.1056,4725.9,4725.2,0.1056]
[1755160782145,0.1056,4725.9,4725.1,0.0008]
[1755160782471,0.1056,4725.5,4724.9,2.11640516]
[1755160782675,0.1056,4725.5,4724.8,3.1056]
[1755160782875,0.1056,4725.5,4725.0,0.001]
[1755160783078,0.1056,4725.5,4725.0,2.34000731]
[1755160783382,0.1056,4725.5,4725.0,0.2236126]
[1755160783543,0.1056,4725.5,4725.0,2.33999967]
[1755160783749,0.1056,4725.5,4725.0,0.2236126]
[1755160784779,0.1056,4725.5,4725.0,2.34001008]
[1755160784949,0.1056,4725.5,4725.1,3.75621013]
[1755160785149,0.1056,4725.5,4725.1,2.87256542]
[1755160785474,0.1056,4725.5,4725.1,0.75621013]
[1755160785790,0.1056,4725.5,4724.8,5.22204948]
[1755160785951,0.1056,4725.5,4725.0,2.11636914]
[1755160788582,0.1056,4725.5,4725.1,2.11635615]
[1755160788757,0.9017,4725.4,4725.1,2.11715615]
[1755160788952,3.8265,4725.3,4725.1,0.0008]
[1755160789476,0.1056,4725.5,4725.1,0.0008]
[1755160789680,0.1056,4725.5,4725.1,2.11715468]
[1755160789852,1.0073,4725.5,4725.0,2.11639351]
[1755160790254,1.0073,4725.5,4725.0,0.43415168]
[1755160791052,0.9017,4725.4,4725.0,0.43415168]
[1755160791395,0.4517,4725.4,4725.0,0.43415168]
[1755160791554,0.4733,4725.3,4725.0,0.43415168]
[1755160791754,0.1056,4725.5,4725.0,0.43415168]
[1755160791973,0.1056,4725.5,4725.0,3.43415168]
[1755160792252,0.1056,4725.5,4725.1,0.56561562]
[1755160792253,0.5789,4725.5,4725.1,0.56561562]
[1755160792455,1.0333,4725.5,4725.1,0.56561562]
[1755160792682,1.0333,4725.5,4724.9,2.11641015]
[1755160792880,1.0333,4725.5,4725.0,2.11638505]
[1755160793071,1.0333,4725.5,4724.9,2.11644066]
[1755160794359,0.5789,4725.5,4724.8,0.1056]
[1755160794566,0.9277,4725.4,4724.8,0.1056]
[1755160794769,0.9277,4725.4,4724.9,2.11640873]
[1755160795089,0.9277,4725.4,4724.9,2.3390096]
[1755160795390,0.9277,4725.4,4725.1,2.116356]
[1755160795682,0.1056,4725.5,4725.1,2.116356]
[1755160795885,0.1056,4725.5,4725.0,5.11640144]
[1755160796092,0.1056,4725.5,4725.0,2.11640144]
[1755160796262,0.1056,4725.5,4725.1,2.116351]
[1755160796583,0.5789,4725.5,4725.0,2.4156531]
[1755160797885,0.5789,4725.5,4725.0,0.29925178]
[1755160797886,0.9277,4725.4,4725.0,0.29925178]
[1755160798190,0.9277,4725.3,4724.9,2.33904274]
[1755160799089,0.9277,4725.3,4724.9,0.22340087]
[1755160799449,0.9277,4725.3,4724.9,2.33984226]
[1755160800196,0.9277,4725.3,4725.0,2.11639987]
[1755160800381,0.1056,4725.5,4724.9,0.22340087]
[1755160800697,1.0333,4725.5,4724.9,2.11723709]
[1755160800894,1.0333,4725.5,4725.0,2.11639589]
[1755160801072,0.9277,4725.4,4725.0,2.11639589]
[1755160801392,0.1056,4725.5,4724.9,0.0008]
[1755160801562,0.9277,4725.3,4724.8,2.22208373]
[1755160801756,0.4733,4725.3,4724.9,0.43426694]
[1755160802073,0.9277,4725.2,4724.9,0.43426694]
[1755160802468,0.9277,4725.1,4724.6,0.003]
[1755160802684,0.002,4726.5,4724.6,0.003]
[1755160802685,0.9277,4725.0,4724.6,0.003]
[1755160802886,0.9277,4725.0,4724.9,2.1164469]
[1755160803089,0.9269,4725.0,4724.8,2.11647973]
[1755160803685,0.4725,4725.0,4724.8,2.11647973]
[1755160803900,0.4725,4725.0,4724.6,2.11953976]
[1755160804076,0.4544,4725.0,4724.6,2.11953976]
[1755160804416,0.4544,4725.0,4724.6,0.003]
[1755160804914,0.4544,4725.0,4724.7,2.11653649]
[1755160805073,0.9277,4725.0,4724.8,0.001]
[1755160805269,0.9277,4724.9,4724.8,0.001]
[1755160805771,0.4733,4724.9,4724.8,0.001]
[1755160806176,0.4733,4724.9,4724.8,2.1174917]
[1755160806406,0.9277,4724.9,4724.8,0.001]
[1755160807076,0.4733,4724.9,4724.8,0.001]
[1755160807278,0.9277,4724.9,4724.8,0.001]
[1755160807708,0.9277,4724.9,4724.8,2.1174917]
[1755160808005,0.81552798,4724.9,4724.8,0.001]
[1755160808414,0.92112798,4724.9,4724.8,0.001]
[1755160809289,0.92112798,4724.9,4724.8,0.0018]
[1755160813006,1.0333,4724.9,4724.8,0.0018]
[1755160813315,0.1056,4724.9,4724.8,0.0018]
[1755160813485,0.4544,4725.2,4724.8,0.0018]
[1755160813818,0.002,4725.5,4724.8,0.0018]
[1755160814116,0.1056,4725.4,4724.9,2.11644257]
[1755160814288,0.1056,4725.4,4724.9,0.43434159]
[1755160814606,1.0333,4725.4,4724.9,0.43434159]
[1755160815276,0.1056,4725.4,4724.9,0.43434159]
[1755160815482,0.1056,4725.4,4724.9,2.55077508]
[1755160815896,0.1056,4725.4,4725.0,0.02116402]
[1755160816092,0.002,4725.5,4725.4,2.11622296]
[1755160816303,0.002,4725.5,4725.4,5.68274291]
[1755160816694,0.002,4725.5,4725.4,6.04664291]
[1755160816895,0.002,4725.5,4725.4,5.68274291]
[1755160817578,0.9297,4725.5,4725.4,0.1056]
[1755160817779,0.9297,4725.5,4724.8,0.0018]